[Event "Titled Tuesday Blitz November 08 Early 2022"]
[White "Mosadeghpour, Masoud"]
[Black "Pakleza, Zbigniew"]
[WhiteFideId "12519278"]
[BlackFideId "1119290"]
[WhiteElo "2393"]
[BlackElo "2411"]
[Result "0-1"]
[Round "11"]
[TimeControl "180+1"]
[Date "2022.11.08"]
[WhiteClock "0:00:14"]
[BlackClock "0:00:03"]

1. e4 {[%clk 0:03:00]}  d6 {[%clk 0:03:00]} 2. d4 {[%clk 0:02:54]}  Nf6 {[%clk 0:03:01]} 3. Nc3 {[%clk 0:02:53]}  c6 {[%clk 0:03:01]} 4. Nf3 {[%clk 0:02:51]}  Bg4 {[%clk 0:03:00]} 5. Be2 {[%clk 0:02:49]}  e6 {[%clk 0:03:00]} 6. O-O {[%clk 0:02:49]}  d5 {[%clk 0:03:00]} 7. e5 {[%clk 0:02:48]}  Nfd7 {[%clk 0:03:00]} 8. h3 {[%clk 0:02:48]}  Bxf3 {[%clk 0:03:00]} 9. Bxf3 {[%clk 0:02:48]}  c5 {[%clk 0:03:01]} 10. Nxd5 {[%clk 0:02:40]}  Nc6 {[%clk 0:02:38]} 11. Bg5 {[%clk 0:02:33]}  Qa5 {[%clk 0:01:54]} 12. b4 {[%clk 0:02:02]}  cxb4 {[%clk 0:01:47]} 13. Ne3 {[%clk 0:01:41]}  Nb6 {[%clk 0:01:46]} 14. a3 {[%clk 0:01:26]}  bxa3 {[%clk 0:01:41]} 15. c4 {[%clk 0:01:24]}  Qc3 {[%clk 0:01:18]} 16. Rc1 {[%clk 0:01:19]}  Qb2 {[%clk 0:01:08]} 17. Rb1 {[%clk 0:01:13]}  Qc3 {[%clk 0:01:03]} 18. Rb3 {[%clk 0:01:13]}  Qa5 {[%clk 0:00:57]} 19. c5 {[%clk 0:01:10]}  Bxc5 {[%clk 0:00:50]} 20. dxc5 {[%clk 0:01:07]}  Qxc5 {[%clk 0:00:51]} 21. Qd6 {[%clk 0:00:38]}  Qxd6 {[%clk 0:00:46]} 22. exd6 {[%clk 0:00:38]}  Nd4 {[%clk 0:00:33]} 23. Rxa3 {[%clk 0:00:34]}  Nxf3+ {[%clk 0:00:32]} 24. gxf3 {[%clk 0:00:35]}  f6 {[%clk 0:00:28]} 25. Bf4 {[%clk 0:00:34]}  Kd7 {[%clk 0:00:29]} 26. Rfa1 {[%clk 0:00:29]}  e5 {[%clk 0:00:20]} 27. Bg3 {[%clk 0:00:29]}  Kxd6 {[%clk 0:00:21]} 28. f4 {[%clk 0:00:25]}  exf4 {[%clk 0:00:16]} 29. Bxf4+ {[%clk 0:00:26]}  Ke6 {[%clk 0:00:16]} 30. Rxa7 {[%clk 0:00:26]}  g5 {[%clk 0:00:13]} 31. Bg3 {[%clk 0:00:22]}  Rhc8 {[%clk 0:00:10]} 32. Rxa8 {[%clk 0:00:20]}  Rxa8 {[%clk 0:00:11]} 33. Rb1 {[%clk 0:00:20]}  Ra6 {[%clk 0:00:10]} 34. Bc7 {[%clk 0:00:19]}  Nd7 {[%clk 0:00:04]} 35. Rxb7 {[%clk 0:00:18]}  Ra3 {[%clk 0:00:02]} 36. Rb4 {[%clk 0:00:16]}  Nc5 {[%clk 0:00:02]} 37. Rb6+ {[%clk 0:00:16]}  Kf7 {[%clk 0:00:03]} 38. Bd6 {[%clk 0:00:14]}  Ra1+ {[%clk 0:00:02]} 39. Kg2 {[%clk 0:00:14]}  Ne4 {[%clk 0:00:03]} 0-1


[Site "https://www.chess.com"]

[Event "Titled Tuesday Blitz November 08 Early 2022"]
[White "Moskvin, Anatoly"]
[Black "Janaszak, Dawid"]
[WhiteFideId "24199990"]
[BlackFideId "1119206"]
[WhiteElo "2079"]
[BlackElo "2226"]
[Result "0-1"]
[Round "11"]
[TimeControl "180+1"]
[Date "2022.11.09"]
[WhiteClock "0:00:07"]
[BlackClock "0:00:05"]

1. e4 {[%clk 0:03:00]}  Nc6 {[%clk 0:02:55]} 2. Nf3 {[%clk 0:03:00]}  e5 {[%clk 0:02:50]} 3. Bc4 {[%clk 0:02:59]}  Nf6 {[%clk 0:02:48]} 4. d3 {[%clk 0:02:59]}  d5 {[%clk 0:02:48]} 5. exd5 {[%clk 0:02:59]}  Nxd5 {[%clk 0:02:49]} 6. O-O {[%clk 0:02:59]}  Nb6 {[%clk 0:02:49]} 7. Bb3 {[%clk 0:02:50]}  Bd6 {[%clk 0:02:49]} 8. h3 {[%clk 0:02:49]}  O-O {[%clk 0:02:49]} 9. a4 {[%clk 0:02:46]}  a5 {[%clk 0:02:47]} 10. Be3 {[%clk 0:02:44]}  Kh8 {[%clk 0:02:45]} 11. Bxb6 {[%clk 0:02:43]}  cxb6 {[%clk 0:02:44]} 12. Nc3 {[%clk 0:02:40]}  f5 {[%clk 0:02:44]} 13. Re1 {[%clk 0:02:33]}  Bd7 {[%clk 0:02:22]} 14. Qd2 {[%clk 0:02:32]}  Nd4 {[%clk 0:02:15]} 15. Nxe5 {[%clk 0:01:59]}  f4 {[%clk 0:02:15]} 16. Nf7+ {[%clk 0:01:45]}  Rxf7 {[%clk 0:02:15]} 17. Bxf7 {[%clk 0:01:45]}  Bxh3 {[%clk 0:02:03]} 18. Ne4 {[%clk 0:01:41]}  Bxg2 {[%clk 0:01:43]} 19. Kxg2 {[%clk 0:01:26]}  f3+ {[%clk 0:01:42]} 20. Kh3 {[%clk 0:01:03]}  Qd7+ {[%clk 0:01:36]} 21. Kh4 {[%clk 0:01:03]}  Qe7+ {[%clk 0:00:51]} 22. Qg5 {[%clk 0:01:01]}  Nxc2 {[%clk 0:00:28]} 23. Nxd6 {[%clk 0:00:20]}  Qxd6 {[%clk 0:00:28]} 24. Rac1 {[%clk 0:00:18]}  Qh2+ {[%clk 0:00:27]} 25. Kg4 {[%clk 0:00:18]}  Nxe1 {[%clk 0:00:19]} 26. Rxe1 {[%clk 0:00:17]}  Qxf2 {[%clk 0:00:19]} 27. Qe7 {[%clk 0:00:14]}  h6 {[%clk 0:00:11]} 28. Bg6 {[%clk 0:00:14]}  Qg2+ {[%clk 0:00:11]} 29. Kf5 {[%clk 0:00:13]}  Qh3+ {[%clk 0:00:09]} 30. Kf4 {[%clk 0:00:11]}  Rg8 {[%clk 0:00:05]} 31. Qe6 {[%clk 0:00:05]}  Qh4+ {[%clk 0:00:05]} 32. Kxf3 {[%clk 0:00:05]}  Rf8+ {[%clk 0:00:04]} 33. Ke3 {[%clk 0:00:05]}  Qxe1+ {[%clk 0:00:02]} 34. Kd4 {[%clk 0:00:05]}  Qxe6 {[%clk 0:00:03]} 35. Bf5 {[%clk 0:00:06]}  Qf6+ {[%clk 0:00:04]} 36. Kc4 {[%clk 0:00:06]}  Rd8 {[%clk 0:00:05]} 37. Kb5 {[%clk 0:00:07]}  Qd4 {[%clk 0:00:05]} 38. Be6 {[%clk 0:00:07]}  Qb4# {[%clk 0:00:05]} 0-1


[Site "https://www.chess.com"]

[Event "Titled Tuesday Blitz November 08 Early 2022"]
[White "Noboa Silva, Kevin"]
[Black "Kopylov, Alexander A."]
[WhiteFideId "3618471"]
[BlackFideId "4164857"]
[WhiteElo "2178"]
[BlackElo "2436"]
[Result "0-1"]
[Round "11"]
[TimeControl "180+1"]
[Date "2022.11.09"]
[WhiteClock "0:00:06"]
[BlackClock "0:00:47"]

1. d4 {[%clk 0:03:00]}  Nf6 {[%clk 0:02:59]} 2. c4 {[%clk 0:03:00]}  e6 {[%clk 0:02:59]} 3. Nc3 {[%clk 0:03:00]}  Bb4 {[%clk 0:02:59]} 4. e3 {[%clk 0:03:00]}  O-O {[%clk 0:02:59]} 5. Bd3 {[%clk 0:03:00]}  c5 {[%clk 0:02:57]} 6. Ne2 {[%clk 0:02:59]}  d5 {[%clk 0:02:57]} 7. cxd5 {[%clk 0:02:54]}  exd5 {[%clk 0:02:57]} 8. dxc5 {[%clk 0:02:49]}  Nbd7 {[%clk 0:02:55]} 9. a3 {[%clk 0:02:47]}  Bxc5 {[%clk 0:02:55]} 10. O-O {[%clk 0:02:47]}  Ne5 {[%clk 0:02:55]} 11. b4 {[%clk 0:02:47]}  Bd6 {[%clk 0:02:53]} 12. Bb2 {[%clk 0:02:47]}  Bg4 {[%clk 0:02:48]} 13. h3 {[%clk 0:02:37]}  Bh5 {[%clk 0:02:48]} 14. Qc2 {[%clk 0:02:33]}  Bg6 {[%clk 0:02:43]} 15. Bxg6 {[%clk 0:02:32]}  hxg6 {[%clk 0:02:44]} 16. Rad1 {[%clk 0:02:31]}  Nc4 {[%clk 0:02:44]} 17. Bc1 {[%clk 0:02:30]}  Rc8 {[%clk 0:02:43]} 18. Qb3 {[%clk 0:02:28]}  a5 {[%clk 0:02:41]} 19. Nd4 {[%clk 0:01:37]}  axb4 {[%clk 0:02:41]} 20. axb4 {[%clk 0:01:36]}  Qb6 {[%clk 0:02:41]} 21. b5 {[%clk 0:01:25]}  Bb8 {[%clk 0:02:34]} 22. Nf3 {[%clk 0:01:24]}  Rfd8 {[%clk 0:02:17]} 23. Ne2 {[%clk 0:01:15]}  Ne4 {[%clk 0:02:14]} 24. Bb2 {[%clk 0:01:10]}  Rc5 {[%clk 0:01:55]} 25. Bd4 {[%clk 0:00:59]}  Qxb5 {[%clk 0:01:50]} 26. Rb1 {[%clk 0:00:49]}  Qxb3 {[%clk 0:01:46]} 27. Rxb3 {[%clk 0:00:50]}  Rc7 {[%clk 0:01:42]} 28. Rd1 {[%clk 0:00:48]}  Rcd7 {[%clk 0:01:34]} 29. g4 {[%clk 0:00:41]}  f6 {[%clk 0:01:34]} 30. Nc3 {[%clk 0:00:35]}  Na5 {[%clk 0:01:19]} 31. Rb5 {[%clk 0:00:29]}  Nc6 {[%clk 0:01:19]} 32. Na4 {[%clk 0:00:23]}  Nxd4 {[%clk 0:01:19]} 33. Nxd4 {[%clk 0:00:21]}  Ba7 {[%clk 0:01:03]} 34. Ne6 {[%clk 0:00:10]}  Rc8 {[%clk 0:00:55]} 35. Rbxd5 {[%clk 0:00:08]}  Rxd5 {[%clk 0:00:55]} 36. Rxd5 {[%clk 0:00:09]}  Rc1+ {[%clk 0:00:51]} 37. Kg2 {[%clk 0:00:09]}  Rc2 {[%clk 0:00:52]} 38. Rd7 {[%clk 0:00:08]}  Rxf2+ {[%clk 0:00:51]} 39. Kg1 {[%clk 0:00:08]}  Bxe3 {[%clk 0:00:51]} 40. Rxg7+ {[%clk 0:00:08]}  Kh8 {[%clk 0:00:52]} 41. Rxg6 {[%clk 0:00:08]}  Re2+ {[%clk 0:00:46]} 42. Kf1 {[%clk 0:00:06]}  Ng3# {[%clk 0:00:47]} 0-1


[Site "https://www.chess.com"]

[Event "Titled Tuesday Blitz November 08 Early 2022"]
[White "Nouri, Alekhine"]
[Black "Ristic, Nebojsa B"]
[WhiteFideId "5216184"]
[BlackFideId "935468"]
[WhiteElo "2151"]
[BlackElo "2320"]
[Result "1-0"]
[Round "11"]
[TimeControl "180+1"]
[Date "2022.11.09"]
[WhiteClock "0:01:48"]
[BlackClock "0:00:25"]

1. e4 {[%clk 0:02:53]}  Nc6 {[%clk 0:02:59]} 2. d4 {[%clk 0:02:53]}  d6 {[%clk 0:03:00]} 3. Nc3 {[%clk 0:02:53]}  Nf6 {[%clk 0:03:00]} 4. Nf3 {[%clk 0:02:50]}  g6 {[%clk 0:03:00]} 5. h3 {[%clk 0:02:49]}  Bg7 {[%clk 0:03:01]} 6. Be3 {[%clk 0:02:48]}  O-O {[%clk 0:03:01]} 7. Qd2 {[%clk 0:02:48]}  a6 {[%clk 0:03:00]} 8. O-O-O {[%clk 0:02:48]}  b5 {[%clk 0:03:00]} 9. g4 {[%clk 0:02:49]}  Bb7 {[%clk 0:02:45]} 10. g5 {[%clk 0:02:42]}  Nd7 {[%clk 0:02:44]} 11. h4 {[%clk 0:02:41]}  Na5 {[%clk 0:02:22]} 12. h5 {[%clk 0:02:39]}  c5 {[%clk 0:02:16]} 13. Nd5 {[%clk 0:02:35]}  Bxd5 {[%clk 0:02:02]} 14. exd5 {[%clk 0:02:36]}  Nc4 {[%clk 0:02:02]} 15. Bxc4 {[%clk 0:02:36]}  bxc4 {[%clk 0:02:03]} 16. dxc5 {[%clk 0:02:34]}  Nxc5 {[%clk 0:02:02]} 17. Bd4 {[%clk 0:02:33]}  e5 {[%clk 0:01:42]} 18. dxe6 {[%clk 0:02:32]}  Nxe6 {[%clk 0:01:42]} 19. Bxg7 {[%clk 0:02:33]}  Nxg7 {[%clk 0:01:41]} 20. h6 {[%clk 0:02:32]}  Ne6 {[%clk 0:01:40]} 21. Qc3 {[%clk 0:02:31]}  Ra7 {[%clk 0:01:14]} 22. Rhe1 {[%clk 0:02:26]}  Qb6 {[%clk 0:01:13]} 23. Re2 {[%clk 0:02:17]}  Rb8 {[%clk 0:01:11]} 24. Rde1 {[%clk 0:02:13]}  d5 {[%clk 0:01:11]} 25. Nd4 {[%clk 0:02:03]}  Re8 {[%clk 0:00:37]} 26. Nf5 {[%clk 0:01:47]}  Rb7 {[%clk 0:00:27]} 27. Qg7+ {[%clk 0:01:46]}  Nxg7 {[%clk 0:00:25]} 28. Rxe8+ {[%clk 0:01:47]}  Nxe8 {[%clk 0:00:25]} 29. Rxe8# {[%clk 0:01:48]} 1-0


[Site "https://www.chess.com"]

[Event "Titled Tuesday Blitz November 08 Early 2022"]
[White "Odegov, Artem"]
[Black "Ilkhomi, Jaloliddin"]
[WhiteFideId "34183644"]
[BlackFideId "14700948"]
[WhiteElo "2298"]
[BlackElo "2045"]
[Result "1-0"]
[Round "11"]
[TimeControl "180+1"]
[Date "2022.11.09"]
[WhiteClock "0:00:51"]
[BlackClock "0:00:18"]

1. d4 {[%clk 0:03:00]}  Nf6 {[%clk 0:02:53]} 2. c4 {[%clk 0:03:00]}  e6 {[%clk 0:02:53]} 3. Nf3 {[%clk 0:03:00]}  Bb4+ {[%clk 0:02:52]} 4. Nc3 {[%clk 0:02:59]}  O-O {[%clk 0:02:51]} 5. g3 {[%clk 0:02:59]}  b6 {[%clk 0:02:51]} 6. Bg2 {[%clk 0:02:59]}  Bb7 {[%clk 0:02:52]} 7. O-O {[%clk 0:02:58]}  Bxc3 {[%clk 0:02:49]} 8. bxc3 {[%clk 0:02:58]}  Ne4 {[%clk 0:02:50]} 9. Qc2 {[%clk 0:02:58]}  f5 {[%clk 0:02:50]} 10. Nd2 {[%clk 0:02:55]}  d5 {[%clk 0:02:48]} 11. Rb1 {[%clk 0:02:47]}  Nd7 {[%clk 0:02:46]} 12. f3 {[%clk 0:02:37]}  Nxd2 {[%clk 0:02:42]} 13. Bxd2 {[%clk 0:02:38]}  e5 {[%clk 0:02:27]} 14. cxd5 {[%clk 0:02:33]}  Bxd5 {[%clk 0:02:26]} 15. e4 {[%clk 0:02:33]}  Bc4 {[%clk 0:02:21]} 16. Rfe1 {[%clk 0:02:32]}  fxe4 {[%clk 0:02:21]} 17. fxe4 {[%clk 0:02:19]}  Nf6 {[%clk 0:02:16]} 18. Bg5 {[%clk 0:01:51]}  h6 {[%clk 0:02:07]} 19. dxe5 {[%clk 0:01:45]}  hxg5 {[%clk 0:01:58]} 20. exf6 {[%clk 0:01:45]}  Rxf6 {[%clk 0:01:09]} 21. e5 {[%clk 0:01:41]}  Rf8 {[%clk 0:01:09]} 22. Qe4 {[%clk 0:01:30]}  Bd3 {[%clk 0:00:44]} 23. Qxa8 {[%clk 0:01:29]}  Bxb1 {[%clk 0:00:44]} 24. Qxd8 {[%clk 0:01:26]}  Rxd8 {[%clk 0:00:43]} 25. Rxb1 {[%clk 0:01:27]}  Rd2 {[%clk 0:00:43]} 26. Re1 {[%clk 0:01:25]}  Kf8 {[%clk 0:00:43]} 27. a4 {[%clk 0:01:17]}  Ke7 {[%clk 0:00:42]} 28. e6 {[%clk 0:01:16]}  Ra2 {[%clk 0:00:42]} 29. Bc6 {[%clk 0:01:15]}  Rc2 {[%clk 0:00:42]} 30. Re3 {[%clk 0:01:14]}  g4 {[%clk 0:00:40]} 31. Bb5 {[%clk 0:01:08]}  g5 {[%clk 0:00:34]} 32. Be2 {[%clk 0:01:07]}  Ra2 {[%clk 0:00:32]} 33. Re4 {[%clk 0:01:07]}  a5 {[%clk 0:00:32]} 34. Bxg4 {[%clk 0:01:05]}  c6 {[%clk 0:00:31]} 35. Be2 {[%clk 0:01:04]}  b5 {[%clk 0:00:29]} 36. axb5 {[%clk 0:01:05]}  cxb5 {[%clk 0:00:30]} 37. Bxb5 {[%clk 0:01:05]}  Rb2 {[%clk 0:00:28]} 38. Bd7 {[%clk 0:01:05]}  a4 {[%clk 0:00:19]} 39. Rxa4 {[%clk 0:01:04]}  g4 {[%clk 0:00:20]} 40. Rxg4 {[%clk 0:01:03]}  Re2 {[%clk 0:00:19]} 41. c4 {[%clk 0:01:03]}  Kd6 {[%clk 0:00:18]} 42. h4 {[%clk 0:01:02]}  Ke7 {[%clk 0:00:18]} 43. c5 {[%clk 0:01:02]}  Kf6 {[%clk 0:00:18]} 44. c6 {[%clk 0:01:02]}  Rc2 {[%clk 0:00:19]} 45. h5 {[%clk 0:01:00]}  Kf5 {[%clk 0:00:16]} 46. e7+ {[%clk 0:00:58]}  Kf6 {[%clk 0:00:15]} 47. Re4 {[%clk 0:00:55]}  Kg7 {[%clk 0:00:13]} 48. e8=Q {[%clk 0:00:53]}  Rc1+ {[%clk 0:00:14]} 49. Kg2 {[%clk 0:00:53]}  Rc2+ {[%clk 0:00:14]} 50. Kh3 {[%clk 0:00:53]}  Rxc6 {[%clk 0:00:12]} 51. Bxc6 {[%clk 0:00:52]}  Kf6 {[%clk 0:00:11]} 52. Bb5 {[%clk 0:00:51]}  Kf5 {[%clk 0:00:10]} 53. Ba4 {[%clk 0:00:52]}  Kg5 {[%clk 0:00:11]} 54. Bc2 {[%clk 0:00:53]}  Kh6 {[%clk 0:00:11]} 55. Bb1 {[%clk 0:00:54]}  Kg5 {[%clk 0:00:12]} 56. Ba2 {[%clk 0:00:55]}  Kf6 {[%clk 0:00:13]} 57. Bb3 {[%clk 0:00:56]}  Kf5 {[%clk 0:00:14]} 58. Bc4 {[%clk 0:00:56]}  Kf6 {[%clk 0:00:15]} 59. Bd3 {[%clk 0:00:57]}  Kg7 {[%clk 0:00:15]} 60. g4 {[%clk 0:00:54]}  Kh6 {[%clk 0:00:16]} 61. Kh4 {[%clk 0:00:54]}  Kh7 {[%clk 0:00:17]} 62. g5 {[%clk 0:00:51]}  Kg7 {[%clk 0:00:17]} 63. Kg4 {[%clk 0:00:52]}  Kh7 {[%clk 0:00:18]} 64. Re7# {[%clk 0:00:51]} 1-0


[Site "https://www.chess.com"]

[Event "Titled Tuesday Blitz November 08 Early 2022"]
[White "Osmonbekov, Talaibek"]
[Black "Hajiyev, Kanan"]
[WhiteFideId "2017253"]
[BlackFideId "13404148"]
[WhiteElo "2135"]
[BlackElo "2118"]
[Result "1/2-1/2"]
[Round "11"]
[TimeControl "180+1"]
[Date "2022.11.09"]
[WhiteClock "0:00:19"]
[BlackClock "0:00:10"]

1. d4 {[%clk 0:03:00]}  d5 {[%clk 0:02:54]} 2. Bf4 {[%clk 0:03:01]}  c5 {[%clk 0:02:54]} 3. e3 {[%clk 0:03:01]}  cxd4 {[%clk 0:02:55]} 4. exd4 {[%clk 0:03:01]}  Nc6 {[%clk 0:02:56]} 5. Nc3 {[%clk 0:03:00]}  Nf6 {[%clk 0:02:55]} 6. Nb5 {[%clk 0:02:59]}  e5 {[%clk 0:02:42]} 7. dxe5 {[%clk 0:02:58]}  a6 {[%clk 0:02:23]} 8. Nd4 {[%clk 0:02:32]}  Ne4 {[%clk 0:02:15]} 9. Ngf3 {[%clk 0:02:27]}  Bc5 {[%clk 0:02:13]} 10. c3 {[%clk 0:02:24]}  Bg4 {[%clk 0:02:08]} 11. Be2 {[%clk 0:02:22]}  O-O {[%clk 0:02:07]} 12. O-O {[%clk 0:02:21]}  Rc8 {[%clk 0:02:07]} 13. h3 {[%clk 0:02:14]}  Bh5 {[%clk 0:02:07]} 14. Nf5 {[%clk 0:02:02]}  Bg6 {[%clk 0:01:50]} 15. N3d4 {[%clk 0:01:59]}  Re8 {[%clk 0:01:43]} 16. Nd6 {[%clk 0:01:54]}  Nxd6 {[%clk 0:01:33]} 17. exd6 {[%clk 0:01:53]}  Bxd6 {[%clk 0:01:32]} 18. Bxd6 {[%clk 0:01:48]}  Nxd4 {[%clk 0:01:29]} 19. Qxd4 {[%clk 0:01:36]}  Rxe2 {[%clk 0:01:26]} 20. Qxd5 {[%clk 0:01:31]}  Be4 {[%clk 0:01:06]} 21. Qd4 {[%clk 0:01:30]}  Qg5 {[%clk 0:01:00]} 22. Bg3 {[%clk 0:01:16]}  Rd8 {[%clk 0:00:52]} 23. Qe5 {[%clk 0:01:01]}  Qg6 {[%clk 0:00:41]} 24. Rad1 {[%clk 0:00:55]}  Rf8 {[%clk 0:00:31]} 25. c4 {[%clk 0:00:50]}  Bf3 {[%clk 0:00:22]} 26. Qc3 {[%clk 0:00:39]}  Qxg3 {[%clk 0:00:20]} 27. fxg3 {[%clk 0:00:36]}  Rxg2+ {[%clk 0:00:20]} 28. Kh1 {[%clk 0:00:36]}  Bc6 {[%clk 0:00:18]} 29. Rd5 {[%clk 0:00:33]}  Re2 {[%clk 0:00:17]} 30. Rd1 {[%clk 0:00:28]}  Rfe8 {[%clk 0:00:16]} 31. h4 {[%clk 0:00:26]}  h6 {[%clk 0:00:16]} 32. a4 {[%clk 0:00:23]}  R8e3 {[%clk 0:00:16]} 33. Qd4 {[%clk 0:00:19]}  Rxg3 {[%clk 0:00:13]} 34. b4 {[%clk 0:00:15]}  Rh3+ {[%clk 0:00:12]} 35. Kg1 {[%clk 0:00:15]}  Rg3+ {[%clk 0:00:12]} 36. Kf1 {[%clk 0:00:15]}  Rh2 {[%clk 0:00:10]} 37. b5 {[%clk 0:00:15]}  axb5 {[%clk 0:00:08]} 38. axb5 {[%clk 0:00:16]}  Bxd5 {[%clk 0:00:07]} 39. cxd5 {[%clk 0:00:17]}  Rf3+ {[%clk 0:00:06]} 40. Kg1 {[%clk 0:00:16]}  Rhh3 {[%clk 0:00:05]} 41. d6 {[%clk 0:00:16]}  Rhg3+ {[%clk 0:00:06]} 42. Kh1 {[%clk 0:00:17]}  Rh3+ {[%clk 0:00:07]} 43. Kg2 {[%clk 0:00:17]}  Rhg3+ {[%clk 0:00:07]} 44. Kh2 {[%clk 0:00:17]}  Rh3+ {[%clk 0:00:08]} 45. Kg2 {[%clk 0:00:18]}  Rhg3+ {[%clk 0:00:09]} 46. Kh2 {[%clk 0:00:18]}  Rh3+ {[%clk 0:00:10]} 47. Kg2 {[%clk 0:00:19]} 1/2-1/2


[Site "https://www.chess.com"]

[Event "Titled Tuesday Blitz November 08 Early 2022"]
[White "Postny, Evgeny"]
[Black "Safin, Robert"]
[WhiteFideId "2804344"]
[BlackFideId "34189120"]
[WhiteElo "2476"]
[BlackElo "2253"]
[Result "0-1"]
[Round "11"]
[TimeControl "180+1"]
[Date "2022.11.08"]
[WhiteClock "0:00:06"]
[BlackClock "0:00:08"]

1. e4 {[%clk 0:03:00]}  c5 {[%clk 0:03:00]} 2. Nf3 {[%clk 0:03:00]}  e6 {[%clk 0:03:00]} 3. b3 {[%clk 0:03:00]}  b6 {[%clk 0:03:00]} 4. Bb2 {[%clk 0:03:00]}  Bb7 {[%clk 0:03:01]} 5. Bd3 {[%clk 0:03:00]}  Nc6 {[%clk 0:02:59]} 6. O-O {[%clk 0:02:59]}  d6 {[%clk 0:02:53]} 7. c3 {[%clk 0:02:55]}  Nf6 {[%clk 0:02:53]} 8. Bc2 {[%clk 0:02:55]}  Be7 {[%clk 0:02:49]} 9. Re1 {[%clk 0:02:56]}  O-O {[%clk 0:02:48]} 10. a3 {[%clk 0:02:56]}  Qc7 {[%clk 0:02:47]} 11. d4 {[%clk 0:02:55]}  e5 {[%clk 0:02:45]} 12. d5 {[%clk 0:02:51]}  Na5 {[%clk 0:02:43]} 13. c4 {[%clk 0:02:41]}  a6 {[%clk 0:02:40]} 14. Nc3 {[%clk 0:02:40]}  Nh5 {[%clk 0:02:38]} 15. g3 {[%clk 0:02:37]}  Nf6 {[%clk 0:02:27]} 16. Nh4 {[%clk 0:02:32]}  Bc8 {[%clk 0:02:27]} 17. f3 {[%clk 0:02:29]}  Nh5 {[%clk 0:02:24]} 18. Ng2 {[%clk 0:02:21]}  Bd7 {[%clk 0:01:59]} 19. a4 {[%clk 0:02:14]}  g6 {[%clk 0:01:55]} 20. Bd3 {[%clk 0:02:13]}  Ng7 {[%clk 0:01:54]} 21. f4 {[%clk 0:02:08]}  Bf6 {[%clk 0:01:49]} 22. Qc2 {[%clk 0:02:05]}  Rae8 {[%clk 0:01:49]} 23. Kh1 {[%clk 0:02:03]}  Nh5 {[%clk 0:01:49]} 24. Rf1 {[%clk 0:01:57]}  exf4 {[%clk 0:01:42]} 25. gxf4 {[%clk 0:01:56]}  Bg7 {[%clk 0:01:43]} 26. Be2 {[%clk 0:01:49]}  Nf6 {[%clk 0:01:34]} 27. Rae1 {[%clk 0:01:48]}  Bh3 {[%clk 0:01:24]} 28. Bf3 {[%clk 0:01:41]}  h5 {[%clk 0:01:17]} 29. Rf2 {[%clk 0:01:25]}  Ng4 {[%clk 0:01:17]} 30. Rfe2 {[%clk 0:01:26]}  Qe7 {[%clk 0:01:05]} 31. e5 {[%clk 0:01:10]}  dxe5 {[%clk 0:01:04]} 32. f5 {[%clk 0:01:10]}  gxf5 {[%clk 0:01:02]} 33. Nf4 {[%clk 0:01:10]}  Qh4 {[%clk 0:00:59]} 34. Nxh3 {[%clk 0:01:01]}  Qxh3 {[%clk 0:01:00]} 35. Bxg4 {[%clk 0:00:57]}  hxg4 {[%clk 0:00:56]} 36. Qxf5 {[%clk 0:00:52]}  Nxb3 {[%clk 0:00:54]} 37. Re3 {[%clk 0:00:43]}  Nd4 {[%clk 0:00:53]} 38. Rxh3 {[%clk 0:00:21]}  Nxf5 {[%clk 0:00:53]} 39. Rh5 {[%clk 0:00:22]}  Nd4 {[%clk 0:00:50]} 40. Ne4 {[%clk 0:00:22]}  f5 {[%clk 0:00:49]} 41. Nd6 {[%clk 0:00:21]}  Rd8 {[%clk 0:00:48]} 42. Bxd4 {[%clk 0:00:19]}  Rxd6 {[%clk 0:00:16]} 43. Bxe5 {[%clk 0:00:18]}  Bxe5 {[%clk 0:00:15]} 44. Rxe5 {[%clk 0:00:19]}  Rdf6 {[%clk 0:00:15]} 45. Rg5+ {[%clk 0:00:17]}  Kh7 {[%clk 0:00:15]} 46. Re7+ {[%clk 0:00:13]}  R8f7 {[%clk 0:00:16]} 47. Re8 {[%clk 0:00:10]}  Rg7 {[%clk 0:00:16]} 48. Rh5+ {[%clk 0:00:07]}  Kg6 {[%clk 0:00:17]} 49. Rhh8 {[%clk 0:00:01]}  Kg5 {[%clk 0:00:17]} 50. Reg8 {[%clk 0:00:01]}  Rxg8 {[%clk 0:00:16]} 51. Rxg8+ {[%clk 0:00:02]}  Kf4 {[%clk 0:00:17]} 52. Re8 {[%clk 0:00:03]}  Kf3 {[%clk 0:00:17]} 53. Re6 {[%clk 0:00:03]}  Rf8 {[%clk 0:00:16]} 54. Rxb6 {[%clk 0:00:04]}  Rh8 {[%clk 0:00:15]} 55. Rb3+ {[%clk 0:00:04]}  Ke4 {[%clk 0:00:15]} 56. Rb1 {[%clk 0:00:04]}  Kd4 {[%clk 0:00:14]} 57. Rf1 {[%clk 0:00:05]}  Rf8 {[%clk 0:00:14]} 58. Rc1 {[%clk 0:00:04]}  f4 {[%clk 0:00:14]} 59. Kg2 {[%clk 0:00:05]}  a5 {[%clk 0:00:12]} 60. Kf2 {[%clk 0:00:05]}  Kd3 {[%clk 0:00:12]} 61. Rb1 {[%clk 0:00:05]}  Kxc4 {[%clk 0:00:12]} 62. d6 {[%clk 0:00:06]}  Rd8 {[%clk 0:00:12]} 63. Rd1 {[%clk 0:00:06]}  Kb4 {[%clk 0:00:11]} 64. Rd5 {[%clk 0:00:06]}  c4 {[%clk 0:00:11]} 65. d7 {[%clk 0:00:05]}  Kb3 {[%clk 0:00:11]} 66. Rxa5 {[%clk 0:00:05]}  Rxd7 {[%clk 0:00:11]} 67. Ra8 {[%clk 0:00:05]}  Rd2+ {[%clk 0:00:10]} 68. Ke1 {[%clk 0:00:04]}  Rxh2 {[%clk 0:00:11]} 69. a5 {[%clk 0:00:05]}  f3 {[%clk 0:00:11]} 70. Rb8+ {[%clk 0:00:05]}  Kc3 {[%clk 0:00:10]} 71. a6 {[%clk 0:00:06]}  Ra2 {[%clk 0:00:09]} 72. Rb6 {[%clk 0:00:06]}  g3 {[%clk 0:00:08]} 0-1


[Site "https://www.chess.com"]